fUST/lending_fUST_20260519
["ID","MTS","AMOUNT","RATE_DAILY","PERIOD"]
[422590754,1779131445000,-795.5603,9.589e-05,2]
[422590758,1779131445000,-500.0,9.589e-05,2]
[422590757,1779131445000,-500.0,9.589e-05,2]
[422590766,1779131445000,-824.91,9.589e-05,2]
[422590759,1779131445000,-500.0,9.589e-05,2]
[422590761,1779131445000,-500.0,9.589e-05,2]
[422590767,1779131445000,-535.36,9.589e-05,2]
[422590756,1779131445000,-500.0,9.589e-05,2]
[422590762,1779131445000,-500.0,9.589e-05,2]
[422590764,1779131445000,-1167.73,9.589e-05,2]
[422590763,1779131445000,-500.0,9.589e-05,2]
[422590768,1779131445000,-6103.93,9.589e-05,2]
[422590760,1779131445000,-500.0,9.589e-05,2]
[422590771,1779131445000,-1477.44,9.589e-05,2]
[422590795,1779131445000,-500.0,9.589e-05,2]
[422590770,1779131445000,-500.0,9.589e-05,2]
[422590794,1779131445000,-500.0,9.589e-05,2]
[422590784,1779131445000,-569.13,9.589e-05,2]
[422590777,1779131445000,-500.0,9.589e-05,2]
[422590781,1779131445000,-500.0,9.589e-05,2]
[422590774,1779131445000,-769.25,9.589e-05,2]
[422590775,1779131445000,-500.0,9.589e-05,2]
[422590776,1779131445000,-500.0,9.589e-05,2]
[422590769,1779131445000,-500.0,9.589e-05,2]
[422590773,1779131445000,-500.0,9.589e-05,2]
[422590778,1779131445000,-1003.29,9.589e-05,2]
[422590780,1779131445000,-500.0,9.589e-05,2]
[422590779,1779131445000,-500.0,9.589e-05,2]
[422590782,1779131445000,-500.0,9.589e-05,2]
[422590863,1779131446000,-1477.44,0.00010136,2]
[422590867,1779131446000,-500.0,0.00010136,2]
[422590864,1779131446000,-500.0,0.00010136,2]
[422590860,1779131446000,-6103.93,0.00010136,2]
[422590859,1779131446000,-535.36,0.00010136,2]
[422590861,1779131446000,-500.0,0.00010136,2]
[422590848,1779131446000,-372.85040536,0.000101,2]
[422590858,1779131446000,-824.91,0.00010136,2]
[422590869,1779131446000,-1003.29,0.00010136,2]
[422590868,1779131446000,-500.0,0.00010136,2]
[422590871,1779131446000,-500.0,0.00010136,2]
[422590866,1779131446000,-500.0,0.00010136,2]
[422590870,1779131446000,-500.0,0.00010136,2]
[422590865,1779131446000,-769.25,0.00010136,2]
[422590872,1779131446000,-500.0,0.00010136,2]
[422590882,1779131446000,-1020.82,0.00010136,2]
[422590883,1779131446000,-500.0,0.00010136,2]
[422590876,1779131446000,-500.0,0.00010136,2]
[422590878,1779131446000,-500.0,0.00010136,2]
[422590853,1779131446000,-500.0,0.00010136,2]
[422590877,1779131446000,-500.0,0.00010136,2]
[422590862,1779131446000,-500.0,0.00010136,2]
[422590851,1779131446000,-341.97366538,0.00010136,2]
[422590831,1779131446000,-569.13,9.863e-05,2]
[422590847,1779131446000,-200.0,0.0001,2]
[422590873,1779131446000,-500.0,0.00010136,2]
[422590827,1779131446000,-500.0,9.863e-05,2]
[422590828,1779131446000,-500.0,9.863e-05,2]
[422590829,1779131446000,-500.0,9.863e-05,2]
[422590830,1779131446000,-500.0,9.863e-05,2]
[422590839,1779131446000,-578.02,9.863e-05,2]
[422590835,1779131446000,-995.68,9.863e-05,2]
[422590832,1779131446000,-500.0,9.863e-05,2]
[422590840,1779131446000,-1020.82,9.863e-05,2]
[422590833,1779131446000,-500.0,9.863e-05,2]
[422590850,1779131446000,-500.0,0.00010136,2]
[422590842,1779131446000,-500.0,9.863e-05,2]
[422590834,1779131446000,-500.0,9.863e-05,2]
[422590837,1779131446000,-500.0,9.863e-05,2]
[422590844,1779131446000,-1570.404583,9.9e-05,2]
[422590854,1779131446000,-500.0,0.00010136,2]
[422590856,1779131446000,-1167.73,0.00010136,2]
[422590855,1779131446000,-500.0,0.00010136,2]
[422590843,1779131446000,-500.0,9.863e-05,2]
[422590849,1779131446000,-500.0,0.00010136,2]
[422590846,1779131446000,-372.85040536,0.0001,2]
[422590845,1779131446000,-333.59605933,9.998e-05,2]
[422590841,1779131446000,-516.99957104,9.863e-05,2]
[422590875,1779131446000,-569.13,0.00010136,2]
[422590857,1779131446000,-500.0,0.00010136,2]
[422590879,1779131446000,-995.68,0.00010136,2]
[422590908,1779131446000,-1003.29,0.0001041,2]
[422590909,1779131446000,-500.0,0.0001041,2]
[422590912,1779131446000,-500.0,0.0001041,2]
[422590930,1779131446000,-517.29290534,0.00010428,2]
[422590910,1779131446000,-500.0,0.0001041,2]
[422590905,1779131446000,-500.0,0.0001041,2]
[422590913,1779131446000,-500.0,0.0001041,2]
[422590911,1779131446000,-500.0,0.0001041,2]
[422590916,1779131446000,-500.0,0.0001041,2]
[422590918,1779131446000,-995.68,0.0001041,2]
[422590906,1779131446000,-500.0,0.0001041,2]
[422590920,1779131446000,-578.02,0.0001041,2]
[422590922,1779131446000,-500.0,0.0001041,2]
[422590921,1779131446000,-1020.82,0.0001041,2]
[422590917,1779131446000,-500.0,0.0001041,2]
[422590926,1779131446000,-275.59678503,0.00010424,2]
[422590923,1779131446000,-500.0,0.0001041,2]
[422590925,1779131446000,-165.88073538,0.00010424,2]
[422590924,1779131446000,-500.394089,0.00010424,2]
[422590928,1779131446000,-500.0,8.219e-05,2]
[422590929,1779131446000,-500.0,9.041e-05,2]
[422590874,1779131446000,-500.0,0.00010136,2]
[422590919,1779131446000,-500.0,0.0001041,2]
[422590907,1779131446000,-500.0,0.0001041,2]
[422590927,1779131446000,-11276.0315549,0.00010428,2]
[422590903,1779131446000,-275.67,0.0001041,2]
[422590881,1779131446000,-578.02,0.00010136,2]
[422590886,1779131446000,-1346.76044031,0.00010219,2]
[422590880,1779131446000,-500.0,0.00010136,2]
[422590888,1779131446000,-392.601146,0.000103,2]
[422590887,1779131446000,-372.85040536,0.000103,2]
[422590884,1779131446000,-500.0,0.00010136,2]
[422590885,1779131446000,-372.85040536,0.000102,2]
[422590915,1779131446000,-500.0,0.0001041,2]
[422590899,1779131446000,-6103.93,0.0001041,2]
[422590900,1779131446000,-500.0,0.0001041,2]
[422590891,1779131446000,-500.0,0.0001041,2]
[422590890,1779131446000,-500.0,0.0001041,2]
[422590893,1779131446000,-500.0,0.0001041,2]
[422590914,1779131446000,-569.13,0.0001041,2]
[422590889,1779131446000,-372.85040536,0.000104,2]
[422590897,1779131446000,-824.91,0.0001041,2]
[422590896,1779131446000,-500.0,0.0001041,2]
[422590895,1779131446000,-1167.73,0.0001041,2]
[422590904,1779131446000,-769.25,0.0001041,2]
[422590892,1779131446000,-500.0,0.0001041,2]
[422590894,1779131446000,-500.0,0.0001041,2]
[422590901,1779131446000,-500.0,0.0001041,2]
[422590902,1779131446000,-1477.44,0.0001041,2]
[422590898,1779131446000,-535.36,0.0001041,2]
[422590933,1779131447000,-5000.0,8.137e-05,2]
[422590934,1779131447000,-502.8301,8.219e-05,2]
[422590936,1779131447000,-500.0,8.767e-05,2]
[422590935,1779131447000,-500.0,8.493e-05,2]
[422590941,1779131447000,-500.0,9.589e-05,2]
[422590937,1779131447000,-500.0,9.041e-05,2]
[422590942,1779131447000,-500.0,9.863e-05,2]
[422590939,1779131447000,-500.0,9.315e-05,2]
[422590945,1779131447000,-502.8301,0.00010136,2]
[422590946,1779131447000,-500.0,0.00010136,2]
[422590944,1779131447000,-500.0,0.00010136,2]
[422590938,1779131447000,-500.0,9.315e-05,2]
[422590940,1779131447000,-500.0,9.589e-05,2]
[422590947,1779131447000,-500.0,0.0001041,2]
[422590949,1779131447000,-502.8301,0.0001041,2]
[422590950,1779131447000,-3872.84614444,0.00010428,2]
[422590948,1779131447000,-500.0,0.0001041,2]
[422590943,1779131447000,-500.0,9.863e-05,2]
[422590973,1779132389000,287.9231769,0.00013701,60]
[422590976,1779132452000,12744.9191268,0.00017,120]
[422591045,1779132632000,-5000.0,7.177e-05,2]
[422591047,1779132632000,-5000.0,7.25e-05,2]
[422591051,1779132632000,-300.0,7.485e-05,2]
[422591049,1779132632000,-1200.0,7.396e-05,2]
[422591053,1779132632000,-190.13,7.487e-05,2]
[422591055,1779132632000,-338.74833457,7.509e-05,2]
[422591059,1779132632000,-467.7321206,7.799e-05,2]
[422591057,1779132632000,-166.612,7.758e-05,2]
[422591061,1779132632000,-52690.31979711,7.8e-05,2]
[422591461,1779132638000,-500.0,8.219e-05,2]
[422591453,1779132638000,-1151.0,8.136e-05,2]
[422591451,1779132638000,-169.18099615,8e-05,2]
[422591449,1779132638000,-31025.1060747,7.9e-05,2]
[422591462,1779132638000,-500.0,8.219e-05,2]
[422591447,1779132638000,-1376.48599515,7.9e-05,2]
[422591445,1779132638000,-1238.92418974,7.9e-05,2]
[422591438,1779132638000,-2732.47276937,7.9e-05,2]
[422591437,1779132638000,-2516.04567301,7.9e-05,2]
[422591431,1779132638000,-1018.06685665,7.9e-05,2]
[422591435,1779132638000,-2495.96103174,7.9e-05,2]
[422591442,1779132638000,-1455.75359861,7.9e-05,2]
[422591433,1779132638000,-2259.44929419,7.9e-05,2]
[422591429,1779132638000,-419733.97798528,7.8e-05,2]
[422591440,1779132638000,-583.11613144,7.9e-05,2]
[422591468,1779132638000,-500.0,8.219e-05,2]
[422591474,1779132638000,-515.56,8.219e-05,2]
[422591459,1779132638000,-500.0,8.219e-05,2]
[422591455,1779132638000,-795.64687407,8.174e-05,21]
[422591490,1779132638000,-500.0,8.219e-05,2]
[422591476,1779132638000,-500.0,8.219e-05,2]
[422591486,1779132638000,-923.4,8.219e-05,2]
[422591491,1779132638000,-500.0,8.219e-05,2]
[422591488,1779132638000,-500.0,8.219e-05,2]
[422591484,1779132638000,-500.0,8.219e-05,2]
[422591493,1779132638000,-500.0,8.219e-05,2]
[422591480,1779132638000,-500.0,8.219e-05,2]
[422591478,1779132638000,-500.0,8.219e-05,2]
[422591470,1779132638000,-500.0,8.219e-05,2]
[422591472,1779132638000,-669.01,8.219e-05,2]
[422591464,1779132638000,-500.0,8.219e-05,2]
[422591457,1779132638000,-877.2678,8.219e-05,2]
[422591482,1779132638000,-3814.96,8.219e-05,2]
[422591466,1779132638000,-500.0,8.219e-05,2]
[422591594,1779132639000,-500.0,8.493e-05,2]
[422591592,1779132639000,-500.0,8.493e-05,2]
[422591581,1779132639000,-500.0,8.493e-05,2]
[422591591,1779132639000,-500.0,8.493e-05,2]
[422591579,1779132639000,-500.0,8.493e-05,2]
[422591569,1779132639000,-3814.96,8.493e-05,2]
[422591571,1779132639000,-500.0,8.493e-05,2]
[422591573,1779132639000,-923.4,8.493e-05,2]
[422591555,1779132639000,-500.0,8.493e-05,2]
[422591628,1779132639000,-500.0,8.767e-05,2]
[422591565,1779132639000,-500.0,8.493e-05,2]
[422591583,1779132639000,-500.0,8.493e-05,2]
[422591577,1779132639000,-500.0,8.493e-05,2]
[422591584,1779132639000,-627.06,8.493e-05,2]
[422591606,1779132639000,-500.0,8.493e-05,2]
[422591596,1779132639000,-500.0,8.493e-05,2]
[422591614,1779132639000,-180.7947,8.627e-05,2]
[422591612,1779132639000,-500.0,8.493e-05,2]
[422591626,1779132639000,-500.0,8.767e-05,2]
[422591624,1779132639000,-500.0,8.767e-05,2]
[422591622,1779132639000,-500.0,8.767e-05,2]
[422591620,1779132639000,-500.0,8.767e-05,2]
[422591598,1779132639000,-500.0,8.493e-05,2]
[422591618,1779132639000,-500.0,8.767e-05,2]
[422591567,1779132639000,-500.0,8.493e-05,2]
[422591602,1779132639000,-638.02,8.493e-05,2]
[422591604,1779132639000,-622.3,8.493e-05,2]
[422591600,1779132639000,-500.0,8.493e-05,2]
[422591589,1779132639000,-500.0,8.493e-05,2]
[422591587,1779132639000,-500.0,8.493e-05,2]
[422591608,1779132639000,-500.0,8.493e-05,2]
[422591563,1779132639000,-500.0,8.493e-05,2]
[422591551,1779132639000,-500.0,8.493e-05,2]
[422591561,1779132639000,-515.56,8.493e-05,2]
[422591495,1779132639000,-500.0,8.219e-05,2]
[422591499,1779132639000,-500.0,8.219e-05,2]
[422591497,1779132639000,-500.0,8.219e-05,2]
[422591501,1779132639000,-500.0,8.219e-05,2]
[422591503,1779132639000,-500.0,8.219e-05,2]
[422591505,1779132639000,-627.06,8.219e-05,2]
[422591508,1779132639000,-500.0,8.219e-05,2]
[422591510,1779132639000,-500.0,8.219e-05,2]
[422591507,1779132639000,-500.0,8.219e-05,2]
[422591512,1779132639000,-500.0,8.219e-05,2]
[422591514,1779132639000,-500.0,8.219e-05,2]
[422591518,1779132639000,-500.0,8.219e-05,2]
[422591521,1779132639000,-500.0,8.219e-05,2]
[422591516,1779132639000,-360.97986297,8.219e-05,2]
[422591559,1779132639000,-669.01,8.493e-05,2]
[422591523,1779132639000,-500.0,8.219e-05,2]
[422591535,1779132639000,-500.0,8.219e-05,2]
[422591543,1779132639000,-877.2678,8.493e-05,2]
[422591553,1779132639000,-500.0,8.493e-05,2]
[422591527,1779132639000,-500.0,8.219e-05,2]
[422591545,1779132639000,-500.0,8.493e-05,2]
[422591541,1779132639000,-420.0,8.234e-05,2]
[422591539,1779132639000,-500.0,8.219e-05,2]
[422591529,1779132639000,-638.02,8.219e-05,2]
[422591537,1779132639000,-500.0,8.219e-05,2]
[422591533,1779132639000,-500.0,8.219e-05,2]
[422591531,1779132639000,-622.3,8.219e-05,2]
[422591547,1779132639000,-500.0,8.493e-05,2]
[422591549,1779132639000,-500.0,8.493e-05,2]
[422591557,1779132639000,-500.0,8.493e-05,2]
[422591525,1779132639000,-500.0,8.219e-05,2]
[422591610,1779132639000,-500.0,8.493e-05,2]
[422591575,1779132639000,-500.0,8.493e-05,2]
[422591630,1779132639000,-500.0,8.767e-05,2]
[422591701,1779132639000,-500.0,9.041e-05,2]
[422591703,1779132639000,-500.0,9.041e-05,2]
[422591705,1779132639000,-669.01,9.041e-05,2]
[422591711,1779132639000,-500.0,9.041e-05,2]
[422591707,1779132639000,-515.56,9.041e-05,2]
[422591709,1779132639000,-500.0,9.041e-05,2]
[422591713,1779132639000,-500.0,9.041e-05,2]
[422591715,1779132639000,-3814.96,9.041e-05,2]
[422591733,1779132639000,-500.0,9.041e-05,2]
[422591741,1779132639000,-500.0,9.041e-05,2]
[422591717,1779132639000,-500.0,9.041e-05,2]
[422591730,1779132639000,-408.05183412,9.041e-05,2]
[422591737,1779132639000,-500.0,9.041e-05,2]
[422591728,1779132639000,-627.06,9.041e-05,2]
[422591697,1779132639000,-500.0,9.041e-05,2]
[422591740,1779132639000,-500.0,9.041e-05,2]
[422591726,1779132639000,-500.0,9.041e-05,2]
[422591735,1779132639000,-216.53207621,9.041e-05,2]
[422591721,1779132639000,-228.73674901,9.041e-05,2]
[422591724,1779132639000,-500.0,9.041e-05,2]
[422591732,1779132639000,-500.0,9.041e-05,2]
[422591719,1779132639000,-923.4,9.041e-05,2]
[422591754,1779132639000,-500.0,9.041e-05,2]
[422591745,1779132639000,-638.02,9.041e-05,2]
[422591743,1779132639000,-500.0,9.041e-05,2]
[422591757,1779132639000,-483.22606198,9.041e-05,2]
[422591752,1779132639000,-500.0,9.041e-05,2]
[422591760,1779132639000,-587.0,9.057e-05,2]
[422591747,1779132639000,-622.3,9.041e-05,2]
[422591616,1779132639000,-877.2678,8.767e-05,2]
[422591722,1779132639000,-500.0,9.041e-05,2]
[422591699,1779132639000,-500.0,9.041e-05,2]
[422591749,1779132639000,-500.0,9.041e-05,2]
[422591695,1779132639000,-500.0,9.041e-05,2]
[422591693,1779132639000,-500.0,9.041e-05,2]
[422591634,1779132639000,-515.56,8.767e-05,2]
[422591632,1779132639000,-669.01,8.767e-05,2]
[422591648,1779132639000,-500.0,8.767e-05,2]
[422591646,1779132639000,-923.4,8.767e-05,2]
[422591652,1779132639000,-500.0,8.767e-05,2]
[422591650,1779132639000,-500.0,8.767e-05,2]
[422591654,1779132639000,-500.0,8.767e-05,2]
[422591638,1779132639000,-500.0,8.767e-05,2]
[422591656,1779132639000,-379.22072435,8.767e-05,2]
[422591644,1779132639000,-500.0,8.767e-05,2]
[422591640,1779132639000,-500.0,8.767e-05,2]
[422591658,1779132639000,-627.06,8.767e-05,2]
[422591642,1779132639000,-3814.96,8.767e-05,2]
[422591660,1779132639000,-500.0,8.767e-05,2]
[422591636,1779132639000,-500.0,8.767e-05,2]
[422591664,1779132639000,-500.0,8.767e-05,2]
[422591689,1779132639000,-847.8373,9.041e-05,2]
[422591662,1779132639000,-500.0,8.767e-05,2]
[422591687,1779132639000,-262.04867784,8.817e-05,21]
[422591683,1779132639000,-500.0,8.767e-05,2]
[422591670,1779132639000,-500.0,8.767e-05,2]
[422591674,1779132639000,-500.0,8.767e-05,2]
[422591685,1779132639000,-500.0,8.767e-05,2]
[422591672,1779132639000,-500.0,8.767e-05,2]
[422591675,1779132639000,-638.02,8.767e-05,2]
[422591677,1779132639000,-622.3,8.767e-05,2]
[422591668,1779132639000,-500.0,8.767e-05,2]
[422591691,1779132639000,-500.0,9.041e-05,2]
[422591666,1779132639000,-500.0,8.767e-05,2]
[422591681,1779132639000,-500.0,8.767e-05,2]
[422591679,1779132639000,-500.0,8.767e-05,2]
[422591833,1779132640000,-500.0,9.315e-05,2]
[422591857,1779132640000,-500.0,9.315e-05,2]
[422591843,1779132640000,-923.4,9.315e-05,2]
[422591839,1779132640000,-500.0,9.315e-05,2]
[422591837,1779132640000,-3814.96,9.315e-05,2]
[422591835,1779132640000,-500.0,9.315e-05,2]
[422591849,1779132640000,-500.0,9.315e-05,2]
[422591847,1779132640000,-500.0,9.315e-05,2]
[422591851,1779132640000,-627.06,9.315e-05,2]
[422591853,1779132640000,-500.0,9.315e-05,2]
[422591855,1779132640000,-500.0,9.315e-05,2]
[422591841,1779132640000,-500.0,9.315e-05,2]
[422591845,1779132640000,-500.0,9.315e-05,2]
[422591861,1779132640000,-500.0,9.315e-05,2]
[422591859,1779132640000,-500.0,9.315e-05,2]
[422591863,1779132640000,-500.0,9.315e-05,2]
[422591865,1779132640000,-638.02,9.315e-05,2]
[422591869,1779132640000,-500.0,9.315e-05,2]
[422591871,1779132640000,-500.0,9.315e-05,2]
[422591875,1779132640000,-169.18099615,9.32e-05,2]
[422591877,1779132640000,-599.60298507,9.332e-05,2]
[422591883,1779132640000,-644.79446246,9.442e-05,2]
[422591873,1779132640000,-500.0,9.315e-05,2]
[422591891,1779132640000,-185.0,9.497e-05,2]
[422591879,1779132640000,-621.78829552,9.387e-05,2]
[422591829,1779132640000,-669.01,9.315e-05,2]
[422591881,1779132640000,-180.49929639,9.397e-05,2]
[422591867,1779132640000,-622.3,9.315e-05,2]
[422591831,1779132640000,-515.56,9.315e-05,2]
[422591795,1779132640000,-151.0,9.167e-05,2]
[422591825,1779132640000,-500.0,9.315e-05,2]
[422591887,1779132640000,-2202.0,9.497e-05,2]
[422591762,1779132640000,-161.68513202,9.065e-05,2]
[422591764,1779132640000,-163.09729822,9.167e-05,2]
[422591781,1779132640000,-151.0,9.167e-05,2]
[422591770,1779132640000,-537.6845,9.167e-05,2]
[422591785,1779132640000,-151.0,9.167e-05,2]
[422591791,1779132640000,-151.0,9.167e-05,2]
[422591779,1779132640000,-151.0,9.167e-05,2]
[422591793,1779132640000,-151.0,9.167e-05,2]
[422591789,1779132640000,-151.0,9.167e-05,2]
[422591783,1779132640000,-151.0,9.167e-05,2]
[422591776,1779132640000,-151.0,9.167e-05,2]
[422591787,1779132640000,-151.0,9.167e-05,2]
[422591775,1779132640000,-151.0,9.167e-05,2]
[422591799,1779132640000,-151.0,9.167e-05,2]
[422591798,1779132640000,-151.0,9.167e-05,2]
[422591807,1779132640000,-151.0,9.167e-05,2]
[422591802,1779132640000,-151.0,9.167e-05,2]
[422591804,1779132640000,-151.0,9.167e-05,2]
[422591811,1779132640000,-557.5788265,9.222e-05,2]
[422591809,1779132640000,-172.17522243,9.167e-05,2]
[422591815,1779132640000,-500.0,9.315e-05,2]
[422591813,1779132640000,-578.20924308,9.277e-05,2]
[422591819,1779132640000,-500.0,9.315e-05,2]
[422591817,1779132640000,-500.0,9.315e-05,2]
[422591821,1779132640000,-500.0,9.315e-05,2]
[422591823,1779132640000,-500.0,9.315e-05,2]
[422591827,1779132640000,-500.0,9.315e-05,2]
[422591885,1779132640000,-1413.0,9.497e-05,2]
[422591772,1779132640000,-540.4888376,9.167e-05,2]
[422591893,1779132640000,-447.118,9.497e-05,2]
[422591953,1779132640000,-152.0,9.832e-05,7]
[422591957,1779132640000,-500.0,9.863e-05,2]
[422591946,1779132640000,-638.02,9.589e-05,2]
[422591956,1779132640000,-500.0,9.863e-05,2]
[422591949,1779132640000,-500.0,9.589e-05,2]
[422591950,1779132640000,-500.0,9.589e-05,2]
[422591952,1779132640000,-1689.9064054,9.75e-05,2]
[422591951,1779132640000,-7951.4525944,9.75e-05,2]
[422591970,1779132640000,-500.0,9.863e-05,2]
[422591971,1779132640000,-500.0,9.863e-05,2]
[422591960,1779132640000,-515.56,9.863e-05,2]
[422591962,1779132640000,-3814.96,9.863e-05,2]
[422591966,1779132640000,-500.0,9.863e-05,2]
[422591961,1779132640000,-500.0,9.863e-05,2]
[422591963,1779132640000,-600.46820512,9.863e-05,2]
[422591964,1779132640000,-500.0,9.863e-05,2]
[422591965,1779132640000,-923.4,9.863e-05,2]
[422591969,1779132640000,-627.06,9.863e-05,2]
[422591968,1779132640000,-500.0,9.863e-05,2]
[422591967,1779132640000,-500.0,9.863e-05,2]
[422591972,1779132640000,-500.0,9.863e-05,2]
[422591975,1779132640000,-638.02,9.863e-05,2]
[422591974,1779132640000,-500.0,9.863e-05,2]
[422591977,1779132640000,-500.0,9.863e-05,2]
[422591976,1779132640000,-622.3,9.863e-05,2]
[422591973,1779132640000,-500.0,9.863e-05,2]
[422591889,1779132640000,-647.0,9.497e-05,2]
[422591958,1779132640000,-476.51175174,9.863e-05,2]
[422591948,1779132640000,-622.3,9.589e-05,2]
[422591959,1779132640000,-669.01,9.863e-05,2]
[422591947,1779132640000,-500.0,9.589e-05,2]
[422591895,1779132640000,-668.65185757,9.497e-05,2]
[422591954,1779132640000,-152.0,9.832e-05,7]
[422591908,1779132640000,-500.0,9.589e-05,2]
[422591910,1779132640000,-264.77463225,9.589e-05,2]
[422591914,1779132640000,-669.01,9.589e-05,2]
[422591912,1779132640000,-500.0,9.589e-05,2]
[422591916,1779132640000,-515.56,9.589e-05,2]
[422591899,1779132640000,-261.06,9.589e-05,2]
[422591921,1779132640000,-500.0,9.589e-05,2]
[422591897,1779132640000,-399.72303479,9.509e-05,2]
[422591904,1779132640000,-215.66486379,9.589e-05,2]
[422591919,1779132640000,-177.51494968,9.589e-05,2]
[422591901,1779132640000,-500.0,9.589e-05,2]
[422591923,1779132640000,-3814.96,9.589e-05,2]
[422591906,1779132640000,-500.0,9.589e-05,2]
[422591929,1779132640000,-923.4,9.589e-05,2]
[422591955,1779132640000,-433.23,9.863e-05,2]
[422591927,1779132640000,-500.0,9.589e-05,2]
[422591944,1779132640000,-500.0,9.589e-05,2]
[422591941,1779132640000,-500.0,9.589e-05,2]
[422591925,1779132640000,-500.0,9.589e-05,2]
[422591943,1779132640000,-500.0,9.589e-05,2]
[422591939,1779132640000,-500.0,9.589e-05,2]
[422591945,1779132640000,-630.71281265,9.589e-05,2]
[422591940,1779132640000,-500.0,9.589e-05,2]
[422591933,1779132640000,-500.0,9.589e-05,2]
[422591937,1779132640000,-627.06,9.589e-05,2]
[422591931,1779132640000,-500.0,9.589e-05,2]
[422591935,1779132640000,-500.0,9.589e-05,2]
[422592016,1779132641000,-500.0,0.0001041,2]
[422592017,1779132641000,-500.0,0.0001041,2]
[422592010,1779132641000,-923.4,0.0001041,2]
[422592015,1779132641000,-300.06623756,0.0001041,2]
[422592012,1779132641000,-500.0,0.0001041,2]
[422592018,1779132641000,-500.0,0.0001041,2]
[422592013,1779132641000,-500.0,0.0001041,2]
[422592019,1779132641000,-500.0,0.0001041,2]
[422592014,1779132641000,-627.06,0.0001041,2]
[422592021,1779132641000,-622.3,0.0001041,2]
[422592020,1779132641000,-638.02,0.0001041,2]
[422592022,1779132641000,-500.0,0.0001041,2]
[422592025,1779132641000,-541.49788917,0.00010464,2]
[422592047,1779132641000,-500.0,0.00010684,2]
[422592027,1779132641000,-270.42170683,0.00010617,2]
[422592024,1779132641000,-282248.03253259,0.00010428,2]
[422592023,1779132641000,-500.0,0.0001041,2]
[422592026,1779132641000,-183.73119002,0.00010547,2]
[422592032,1779132641000,-500.0,0.00010684,2]
[422592033,1779132641000,-3814.96,0.00010684,2]
[422592030,1779132641000,-669.01,0.00010684,2]
[422592035,1779132641000,-923.4,0.00010684,2]
[422592029,1779132641000,-293.97595002,0.00010684,2]
[422592028,1779132641000,-169.18099615,0.0001064,2]
[422592031,1779132641000,-515.56,0.00010684,2]
[422592036,1779132641000,-500.0,0.00010684,2]
[422592011,1779132641000,-500.0,0.0001041,2]
[422592034,1779132641000,-500.0,0.00010684,2]
[422592009,1779132641000,-500.0,0.0001041,2]
[422591978,1779132641000,-500.0,9.863e-05,2]
[422592003,1779132641000,-1593.41152696,0.00010219,2]
[422591983,1779132641000,-669.01,0.00010136,2]
[422592037,1779132641000,-500.0,0.00010684,2]
[422591982,1779132641000,-336.05878143,0.00010136,2]
[422591981,1779132641000,-500.0,0.00010136,2]
[422591979,1779132641000,-500.0,9.863e-05,2]
[422591984,1779132641000,-515.56,0.00010136,2]
[422591980,1779132641000,-360.99859278,0.00010037,2]
[422591986,1779132641000,-3814.96,0.00010136,2]
[422591990,1779132641000,-500.0,0.00010136,2]
[422591985,1779132641000,-500.0,0.00010136,2]
[422591987,1779132641000,-500.0,0.00010136,2]
[422591996,1779132641000,-500.0,0.00010136,2]
[422591988,1779132641000,-923.4,0.00010136,2]
[422591995,1779132641000,-500.0,0.00010136,2]
[422591993,1779132641000,-500.0,0.00010136,2]
[422591989,1779132641000,-500.0,0.00010136,2]
[422591992,1779132641000,-627.06,0.00010136,2]
[422591991,1779132641000,-500.0,0.00010136,2]
[422591994,1779132641000,-500.0,0.00010136,2]
[422591997,1779132641000,-500.0,0.00010136,2]